bitfinex-derivatives/quotes_SOLF0:USTF0_20250820
["timestamp","ask_amount","ask_price","bid_price","bid_amount"]
[1755727284842,131.12,187.72,187.65,5.3285]
[1755727285040,2.97224831,187.76,187.66,3.05]
[1755727285238,131.12,187.75,187.66,3.05]
[1755727285444,131.12,187.74,187.67,0.03449523]
[1755727285640,131.12,187.73,187.67,0.03449523]
[1755727286033,5.72224831,187.78,187.68,2.87]
[1755727286239,2.75,187.76,187.67,0.03449523]
[1755727286440,2.97224831,187.75,187.66,2.87]
[1755727286637,2.75,187.74,187.66,2.87]
[1755727286843,2.75,187.72,187.7,0.03578062]
[1755727288139,3.29,187.72,187.7,0.03578062]
[1755727288341,5.0700145,187.72,187.62,2.87]
[1755727288539,2.75,187.71,187.62,2.87]
[1755727289641,0.03422395,187.68,187.62,2.87]
[1755727289842,0.03422395,187.68,187.52,358.3]
[1755727289843,2.75,187.66,187.58,2.87]
[1755727290039,2.75,187.66,187.53,2.87]
[1755727290238,2.75,187.65,187.53,5.1900145]
[1755727290444,2.3200145,187.63,187.53,2.87]
[1755727290645,2.78729273,187.61,187.53,2.87]
[1755727292148,2.75,187.6,187.5,8.2027]
[1755727292648,2.3200145,187.6,187.5,2.87]
[1755727292845,2.75,187.59,187.5,2.87]
[1755727293046,2.75,187.56,187.5,2.87]
[1755727293247,2.75,187.54,187.5,2.87]
[1755727293946,2.75,187.54,187.47,8.2036]
[1755727294144,2.75,187.54,187.47,2.87]
[1755727294751,0.03729778,187.52,187.48,2.87]
[1755727294950,0.03729778,187.52,187.5,2.87]
[1755727295747,0.03729778,187.52,187.47,2.87]
[1755727295948,0.03729778,187.52,187.46,5.1900145]
[1755727296347,0.03729778,187.52,187.46,2.87]
[1755727296656,2.75,187.51,187.43,2.87]
[1755727296852,5.0700145,187.51,187.41,146.27140309]
[1755727297052,5.0700145,187.51,187.4,2.87]
[1755727297053,2.75,187.5,187.4,2.87]
[1755727297546,2.75,187.5,187.37,2.3200145]
[1755727297857,2.78410222,187.47,187.36,2.87]
[1755727298051,2.75,187.41,187.31,2.87]
[1755727298554,2.75,187.41,187.31,8.2081]
[1755727298753,0.03751088,187.38,187.31,8.2081]
[1755727298954,0.03751088,187.38,187.32,2.87]
[1755727300650,2.78751088,187.38,187.32,2.87]
[1755727301254,2.78751088,187.38,187.28,2.3200145]
[1755727301651,2.78751088,187.38,187.29,2.87]
[1755727303756,2.78751088,187.38,187.26,2.87]
[1755727304144,2.75,187.38,187.26,2.87]
[1755727304551,0.04033148,187.34,187.26,2.87]
[1755727304748,0.04033148,187.34,187.29,2.87]
[1755727304951,0.04033148,187.34,187.31,2.87]
[1755727305153,0.04033148,187.34,187.33,2.87]
[1755727307862,0.04033148,187.34,187.29,8.2088]
[1755727308058,0.04033148,187.34,187.28,2.3200145]
[1755727308463,0.04033148,187.34,187.28,5.1900145]
[1755727309157,0.04033148,187.34,187.28,2.87]
[1755727309555,0.04033148,187.34,187.28,8.2091]
[1755727310059,0.04033148,187.34,187.28,2.87]
[1755727312662,0.04033148,187.34,187.29,5.3388]
[1755727312963,0.04033148,187.34,187.31,2.87]
[1755727314060,2.79033148,187.34,187.27,2.3200145]
[1755727314264,2.79033148,187.34,187.26,2.87]
[1755727315968,2.79033148,187.34,187.27,5.3394]
[1755727316466,0.04033148,187.34,187.26,3.01]
[1755727316860,0.04033148,187.34,187.28,2.3200145]
[1755727317256,3.0,187.37,187.31,3.01]
[1755727317666,0.03841006,187.33,187.31,3.01]
[1755727318368,3.03841006,187.33,187.27,2.3200145]
[1755727318763,3.0,187.33,187.27,2.3200145]
[1755727319161,0.03789163,187.32,187.27,2.3200145]
[1755727319358,0.03789163,187.32,187.28,3.01]
[1755727319567,0.03789163,187.32,187.27,2.3200145]
[1755727319767,0.03789163,187.32,187.3,3.01]
[1755727320266,0.03789163,187.32,187.28,5.339]
[1755727320267,0.03789163,187.32,187.29,5.3388]
[1755727320461,0.03789163,187.32,187.31,3.01]
[1755727321065,0.03789163,187.32,187.31,3.55]
[1755727321468,0.03789163,187.32,187.31,8.8883]
[1755727322071,131.58,187.43,187.32,3.01]
[1755727322268,131.58,187.43,187.37,3.01]
[1755727322870,3.0,187.44,187.37,3.01]
[1755727323374,3.0,187.44,187.38,0.03481213]
[1755727323573,3.0,187.48,187.38,0.03481213]
[1755727323776,3.0,187.48,187.41,5.3354]
[1755727324066,131.62,187.51,187.42,5.3300145]
[1755727324269,131.62,187.51,187.43,3.01]
[1755727324470,131.62,187.51,187.43,3.05060761]
[1755727325270,131.62,187.51,187.45,5.3342]
[1755727325971,131.62,187.51,187.43,3.05060761]
[1755727327075,3.0,187.57,187.46,3.01]
[1755727327274,3.0,187.61,187.5,3.01]
[1755727327677,3.0,187.61,187.53,3.94343022]
[1755727327886,3.0,187.71,187.57,3.94343022]
[1755727328175,3.0,187.71,187.62,3.01]
[1755727328774,3.0,187.69,187.54,3.01]
[1755727328982,3.0,187.65,187.48,3.01]
[1755727329172,3.0,187.61,187.48,3.01]
[1755727329372,3.0,187.57,187.45,3.01]
[1755727330171,3.04027203,187.53,187.45,3.01]
[1755727333478,3.04027203,187.53,187.4,3.01]
[1755727334073,3.0,187.53,187.4,3.01]
[1755727334284,3.0,187.49,187.32,3.01]
[1755727334478,0.03398675,187.48,187.32,3.01]
[1755727334679,3.0,187.47,187.32,8.348]
[1755727335178,0.03528048,187.41,187.32,3.01]
[1755727336073,3.0,187.4,187.32,3.01]
[1755727336273,3.0,187.4,187.28,3.01]
[1755727337184,0.03603991,187.36,187.28,3.01]
[1755727337372,0.03603991,187.36,187.33,3.01]
[1755727337576,3.0,187.46,187.33,3.01]
[1755727337881,132.38,187.5,187.4,3.94343022]
[1755727338082,132.38,187.5,187.43,5.3347]
[1755727338280,132.38,187.5,187.44,3.01]
[1755727338479,109.93942332,187.51,187.44,3.01]
[1755727338672,109.93942332,187.51,187.45,5.3343]
[1755727338872,112.93942332,187.51,187.45,0.03544563]
[1755727339173,3.0,187.48,187.45,0.03544563]
[1755727339484,3.0,187.48,187.36,3.01]
[1755727339678,3.0,187.48,187.32,3.94343022]
[1755727339879,3.0,187.44,187.32,3.01]
[1755727340280,3.0,187.44,187.33,3.01]
[1755727340475,3.94343022,187.49,187.33,3.01]
[1755727340676,0.03627194,187.4,187.33,3.01]
[1755727340878,0.03627194,187.4,187.36,3.94343022]
[1755727341079,0.03627194,187.4,187.39,5.336]
[1755727341281,3.0,187.48,187.39,3.01]
[1755727341484,3.0,187.48,187.4,5.3357]
[1755727341689,3.0,187.48,187.39,3.01]
[1755727342280,3.0,187.48,187.39,8.346]
[1755727342583,3.0,187.48,187.42,0.03759789]
[1755727345092,3.0,187.44,187.28,3.01]
[1755727345281,3.0,187.44,187.31,5.3383]
[1755727345477,3.0,187.44,187.31,3.01]
[1755727345684,135.96,187.44,187.31,3.01]
[1755727345884,135.96,187.44,187.31,6.95343022]
[1755727346089,135.96,187.44,187.32,2.96]
[1755727346292,0.04091857,187.39,187.38,2.96]
[1755727346687,3.01,187.49,187.38,2.96]
[1755727346885,3.01,187.49,187.39,5.3358]
[1755727347080,0.03612267,187.4,187.39,2.96]
[1755727347286,0.03612267,187.4,187.36,2.96]
[1755727347489,3.01,187.45,187.32,2.96]
[1755727347688,0.03553373,187.4,187.32,2.96]
[1755727347893,3.04553373,187.4,187.28,8.2991]
[1755727348191,3.04553373,187.4,187.28,2.96]
[1755727348485,3.04553373,187.4,187.3,5.3384]
[1755727348486,3.01,187.4,187.3,5.3384]
[1755727348691,0.03745362,187.36,187.28,2.96]
[1755727348991,0.03745362,187.36,187.34,2.96]
[1755727349186,0.03745362,187.36,187.35,2.96]
[1755727349380,3.01,187.44,187.35,2.96]
[1755727349586,3.01,187.44,187.32,5.3379]
[1755727349786,0.03938518,187.37,187.31,3.94343022]
[1755727350194,0.03938518,187.37,187.33,2.96]
[1755727350487,0.03938518,187.37,187.34,8.2974]
[1755727350790,0.03938518,187.37,187.35,2.96]
[1755727350990,0.03938518,187.37,187.36,2.96]
[1755727351486,3.01,187.48,187.36,3.5]
[1755727351690,3.01,187.48,187.36,2.96]
[1755727352794,3.01,187.48,187.4,0.03637064]
[1755727355993,3.94343022,187.45,187.4,0.03637064]
[1755727356196,3.01,187.44,187.4,0.03637064]
[1755727356596,3.55,187.44,187.4,0.03637064]
[1755727356890,3.585793,187.44,187.28,2.96]
[1755727357092,3.045793,187.44,187.28,2.96]
[1755727357293,3.01,187.44,187.28,2.96]
[1755727357903,3.01,187.44,187.32,5.338]
[1755727358198,0.03694427,187.38,187.34,2.96]
[1755727358998,0.03694427,187.38,187.33,5.3377]
[1755727359198,0.03694427,187.38,187.36,2.96]
[1755727360301,0.03694427,187.38,187.37,2.96]
[1755727360495,0.03694427,187.38,187.37,8.2966]
[1755727360696,3.01,187.47,187.37,2.96]
[1755727360899,109.3948167,187.5,187.31,8.3375844]
[1755727360900,109.3948167,187.5,187.4,2.96]
[1755727361096,3.01,187.52,187.4,2.96]
[1755727361499,0.03600633,187.47,187.4,2.96]
[1755727364204,3.01,187.46,187.35,8.2971]
[1755727364397,3.01,187.46,187.35,2.96]
[1755727366396,0.03841625,187.42,187.35,2.96]
[1755727367104,0.03841625,187.42,187.35,8.2969]
[1755727367300,0.03841625,187.42,187.35,2.96]
[1755727367509,0.03841625,187.42,187.34,3.94343022]
[1755727367510,0.03841625,187.42,187.4,5.3357]
[1755727367710,0.03841625,187.42,187.41,2.96]
[1755727368005,0.03841625,187.42,187.35,2.96]
[1755727369708,3.01,187.41,187.3,2.96]
[1755727370010,3.01,187.46,187.31,2.96]
[1755727370413,0.03760916,187.37,187.31,2.96]
[1755727370608,0.03760916,187.37,187.3,8.3375844]
[1755727370609,0.03760916,187.37,187.36,8.2967]
[1755727371310,3.01,187.46,187.38,5.3362]
[1755727371519,3.01,187.46,187.36,3.5]
[1755727371520,3.01,187.46,187.36,2.96]
[1755727371716,3.01,187.46,187.37,5.3365]
[1755727372012,3.01,187.46,187.36,2.96]
[1755727372609,3.01,187.46,187.23,10.6807]
[1755727372610,3.94343022,187.43,187.28,160.5937831]
[1755727372922,3.01,187.42,187.28,156.19962892]
[1755727373716,3.01,187.38,187.23,4.39415418]
[1755727374112,0.0355743,187.36,187.23,4.39415418]
[1755727374308,3.01,187.35,187.23,5.3405]
[1755727374612,3.94343022,187.31,187.18,4.39415418]
[1755727374920,3.01,187.3,187.16,2.96]
[1755727375324,3.01,187.34,187.18,2.96]
[1755727375617,0.03697513,187.25,187.17,7.35415418]
[1755727375920,0.03697513,187.25,187.2,2.89]
[1755727376117,2.78,187.34,187.23,3.94343022]
[1755727376414,2.78,187.32,187.21,2.926911]
[1755727376610,2.78,187.35,187.22,3.94343022]
[1755727376807,137.34,187.35,187.18,4.39415418]
[1755727377007,2.78,187.31,187.18,6.83343022]
[1755727377211,2.78,187.31,187.18,2.89]
[1755727377621,3.94343022,187.32,187.18,2.89]
[1755727377622,2.78,187.36,187.24,2.89]
[1755727378021,2.78,187.34,187.18,11.2275844]
[1755727378317,2.78,187.34,187.23,2.89]
[1755727378518,2.78,187.34,187.28,0.03665154]
[1755727379216,358.68,187.37,187.29,2.89]
[1755727379524,361.46,187.37,187.28,0.03665154]
[1755727379823,2.78,187.36,187.28,0.03665154]
[1755727380821,361.46,187.37,187.28,0.03665154]
[1755727381119,3.94343022,187.31,187.28,0.03665154]
[1755727381624,2.78,187.29,187.16,4.39415418]
[1755727381811,2.78,187.33,187.17,7.28415418]
[1755727382014,6.72343022,187.3,187.17,2.89]
[1755727382218,2.78,187.3,187.21,2.89]
[1755727382814,2.78,187.29,187.14,4.39415418]
[1755727383021,0.03897276,187.27,187.15,2.89]
[1755727383418,5.91830569,187.34,187.15,6.83343022]
[1755727383419,2.78,187.26,187.15,6.83343022]
[1755727383619,2.78,187.32,187.16,2.89]
[1755727383820,0.04091092,187.23,187.16,2.89]
[1755727384321,0.04091092,187.23,187.22,2.89]
[1755727384713,2.78,187.32,187.22,2.89]
[1755727385123,0.03393568,187.24,187.2,2.89]
[1755727385318,2.78,187.32,187.23,2.89]
[1755727385519,135.92,187.34,187.23,6.83343022]
[1755727385923,135.92,187.34,187.26,2.92529841]
[1755727386517,358.68,187.37,187.26,2.92529841]
[1755727386718,358.68,187.37,187.27,3.94343022]
[1755727386913,358.68,187.37,187.29,5.3386]
[1755727387118,358.68,187.37,187.27,3.94343022]
[1755727387321,2.78,187.41,187.33,5.3377]
[1755727387519,2.78,187.41,187.31,2.92364856]
[1755727387714,358.82,187.47,187.31,6.86707878]
[1755727387919,361.6,187.47,187.36,2.89]
[1755727388322,361.6,187.47,187.38,5.3363]
[1755727388626,361.6,187.47,187.37,0.03434318]
[1755727389027,361.6,187.47,187.38,2.89]
[1755727390323,361.6,187.47,187.37,0.03434318]
[1755727390324,2.78,187.46,187.37,0.03434318]
[1755727390924,2.78,187.43,187.37,0.03434318]
[1755727391127,2.78,187.39,187.37,0.03434318]
[1755727391326,2.78,187.38,187.37,0.03434318]
[1755727391525,3.94343022,187.4,187.37,0.03434318]
[1755727391827,2.78,187.4,187.37,0.03434318]
[1755727392029,2.78,187.38,187.37,0.03434318]
[1755727393322,2.78,187.41,187.37,0.03434318]
[1755727393523,136.32,187.43,187.37,0.03434318]
[1755727394830,136.32,187.43,187.37,2.92434318]
[1755727395924,136.32,187.43,187.37,0.03434318]
[1755727397230,2.78,187.42,187.37,0.03434318]
[1755727397424,2.78,187.41,187.37,0.03434318]
[1755727397731,136.32,187.43,187.37,0.03434318]
[1755727401334,139.1,187.43,187.37,0.03434318]
[1755727401520,2.78,187.43,187.37,0.03434318]
[1755727401721,136.34,187.43,187.37,0.03434318]
[1755727401926,136.36,187.43,187.37,0.03434318]
[1755727406535,136.26,187.42,187.37,2.79434318]
[1755727406723,136.26,187.42,187.38,2.76]
[1755727406929,136.26,187.42,187.39,2.76]
[1755727407131,136.26,187.42,187.4,2.76]
[1755727407831,358.82,187.47,187.4,2.76]
[1755727408036,136.26,187.45,187.38,2.76]
[1755727408234,136.26,187.45,187.39,5.3358]
[1755727408437,136.26,187.45,187.38,2.76]
[1755727408627,136.26,187.45,187.4,0.04028488]
[1755727410338,2.77,187.42,187.4,0.04028488]
[1755727410539,138.97,187.41,187.4,0.04028488]
[1755727410733,136.16,187.41,187.4,0.04028488]
[1755727412234,358.82,187.47,187.4,2.80028488]
[1755727412543,136.16,187.46,187.4,2.80028488]
[1755727413537,136.16,187.46,187.4,0.04028488]
[1755727415341,2.77,187.44,187.4,0.04028488]
[1755727415638,2.77,187.45,187.4,0.04028488]
[1755727415840,2.77,187.43,187.4,0.04028488]
[1755727416041,138.85,187.42,187.4,0.04028488]
[1755727416241,2.77,187.41,187.4,0.04028488]
[1755727418440,2.77,187.41,187.32,2.76]
[1755727418845,0.03770358,187.42,187.32,2.76]
[1755727419053,135.9,187.4,187.32,2.76]
[1755727419639,135.9,187.4,187.32,6.42682838]
[1755727419844,0.03655315,187.38,187.33,2.76]
[1755727420038,0.03655315,187.38,187.35,2.76]
[1755727420242,0.03655315,187.38,187.34,5.3373]
[1755727420443,0.03655315,187.38,187.37,2.76]
[1755727420943,0.03655315,187.38,187.32,2.76]
[1755727421539,0.03655315,187.38,187.32,8.098]
[1755727421942,0.03655315,187.38,187.32,2.76]
[1755727422148,0.03655315,187.38,187.34,2.76]
[1755727422344,0.03655315,187.38,187.3,2.76]
[1755727422539,0.03655315,187.38,187.31,2.76]
[1755727422744,0.03655315,187.38,187.35,2.76]
[1755727423450,0.03655315,187.38,187.34,5.3373]
[1755727423655,0.03655315,187.38,187.37,2.76]
[1755727423951,0.03655315,187.38,187.31,2.76]
[1755727424251,0.03655315,187.38,187.36,2.76]
[1755727425445,0.03655315,187.38,187.29,5.85887225]
[1755727425446,0.03655315,187.38,187.32,2.76]
[1755727425949,0.03655315,187.38,187.29,2.76]
[1755727426956,0.03655315,187.38,187.26,155.53329737]
[1755727426957,2.77,187.37,187.26,159.92745155]
[1755727427154,2.77,187.37,187.26,155.53329737]
[1755727427853,0.03446034,187.33,187.26,155.53329737]
[1755727428053,0.03446034,187.33,187.26,160.87299737]
[1755727428254,0.03446034,187.33,187.26,5.3397]
[1755727428456,0.03446034,187.33,187.25,2.76]
[1755727429144,2.77,187.32,187.21,7.15415418]
[1755727429454,2.77,187.32,187.21,2.76]
[1755727429842,135.72,187.31,187.21,2.76]
[1755727430048,0.03983144,187.28,187.21,2.76]
[1755727430744,0.03983144,187.28,187.22,5.3407]
[1755727430949,0.03983144,187.28,187.21,2.76]
[1755727431350,0.03983144,187.28,187.23,5.3406]
[1755727431551,0.03983144,187.28,187.24,2.76]
[1755727431959,0.03983144,187.28,187.2,2.76]
[1755727433757,0.03983144,187.28,187.21,5.3411]
[1755727434161,0.03983144,187.28,187.2,2.76]
[1755727434162,2.80983144,187.28,187.2,2.76]
[1755727434454,2.80983144,187.28,187.16,2.76]
[1755727434660,2.80983144,187.28,187.16,8.1023]
[1755727434860,2.77,187.28,187.16,2.76]
[1755727435359,0.03584391,187.24,187.16,2.76]
[1755727435958,0.03584391,187.24,187.11,4.39415418]
[1755727436151,2.9,187.23,187.11,2.95]
[1755727436758,0.03573508,187.19,187.11,2.95]
[1755727437264,0.03573508,187.19,187.12,5.3435]
[1755727437854,0.03573508,187.19,187.13,5.3433]
[1755727438458,0.03573508,187.19,187.12,5.3437]
[1755727438859,0.03573508,187.19,187.11,2.95]
[1755727439360,0.03573508,187.19,187.13,5.3432]
[1755727439963,0.03573508,187.19,187.11,2.95]
[1755727442564,0.03573508,187.19,187.16,5.3424]
[1755727442764,0.03573508,187.19,187.17,2.95]
[1755727442966,0.03573508,187.19,187.13,2.95]
[1755727443269,0.03573508,187.19,187.15,5.3426]
[1755727443466,0.03573508,187.19,187.16,2.95]
[1755727444265,0.03573508,187.19,187.18,2.95]
[1755727444667,0.03573508,187.19,187.15,5.3426]
[1755727444869,0.03573508,187.19,187.16,2.95]
[1755727445065,0.03573508,187.19,187.13,2.95]
[1755727445370,0.03573508,187.19,187.16,5.3425]
[1755727445567,0.03573508,187.19,187.16,8.2925]
[1755727445864,0.03573508,187.19,187.18,2.95]
[1755727447168,0.03573508,187.19,187.18,8.292]
[1755727447368,2.9,187.28,187.18,3.49]
[1755727447571,2.9,187.28,187.18,2.95]
[1755727448775,2.9,187.28,187.21,0.03536804]
[1755727449575,2.9,187.28,187.21,5.37626804]
[1755727449775,2.9,187.28,187.21,0.03536804]
[1755727452372,2.9,187.32,187.22,2.95]
[1755727452581,2.9,187.32,187.23,2.95]
[1755727452778,358.8,187.34,187.23,2.95]
[1755727453282,358.8,187.34,187.22,3.66682838]
[1755727453283,2.9,187.36,187.27,2.95]
[1755727454480,113.01076425,187.4,187.27,2.95]
[1755727454481,109.34393587,187.4,187.27,2.95]
[1755727454676,2.9,187.39,187.27,2.95]
[1755727454874,2.9,187.39,187.31,5.3383]
[1755727455082,2.9,187.39,187.27,2.95]
[1755727455481,2.9,187.39,187.31,0.03675031]
[1755727457885,109.34393587,187.4,187.31,0.03675031]
[1755727458084,109.34393587,187.4,187.31,2.98675031]
[1755727458286,109.34393587,187.4,187.32,5.338]
[1755727458887,109.34393587,187.4,187.31,8.32495031]
[1755727459088,109.34393587,187.4,187.31,2.98675031]
[1755727459486,109.34393587,187.4,187.31,8.32495031]
[1755727460288,109.34393587,187.4,187.32,5.338]
[1755727461687,109.34393587,187.4,187.31,0.03675031]
[1755727463689,113.01076425,187.4,187.31,0.03675031]
[1755727465190,3.66682838,187.36,187.31,0.03675031]
[1755727465387,134.6,187.35,187.31,0.03675031]
[1755727467684,134.6,187.35,187.21,5.3411]
[1755727467889,134.63519233,187.35,187.16,3.66682838]
[1755727468086,134.63519233,187.35,187.16,8.06098256]
[1755727468292,134.6,187.35,187.16,3.66682838]
[1755727468489,3.66682838,187.32,187.16,3.66682838]
[1755727468891,3.66682838,187.32,187.19,5.3416]
[1755727469092,0.03897709,187.26,187.19,5.3416]
[1755727469288,0.03897709,187.26,187.16,3.66682838]
[1755727469289,0.03897709,187.26,187.16,9.00932838]
[1755727469594,0.03897709,187.26,187.12,362.62682838]
[1755727469891,0.03897709,187.26,187.17,5.3422]
[1755727470089,134.58,187.28,187.17,5.3422]
[1755727470394,0.03937158,187.23,187.16,5.3425]
[1755727472295,0.03937158,187.23,187.15,5.3428]
[1755727472501,0.03937158,187.23,187.12,362.62682838]
[1755727472796,0.03937158,187.23,187.13,5.3432]
[1755727473296,138.24682838,187.28,187.13,5.3432]
[1755727473496,138.24682838,187.28,187.08,8.06098256]
[1755727473698,0.04063474,187.2,187.08,8.06098256]
[1755727473891,0.04063474,187.2,187.13,5.3432]
[1755727474396,0.04063474,187.2,187.08,3.66682838]
[1755727474596,0.04063474,187.2,187.11,5.3438]
[1755727474896,0.04063474,187.2,187.08,3.66682838]
[1755727475295,0.04063474,187.2,187.12,3.66682838]
[1755727475600,0.04063474,187.2,187.18,5.3418]
[1755727476098,0.04063474,187.2,187.12,3.66682838]
[1755727476398,0.04063474,187.2,187.07,8.06098256]
[1755727476595,0.04063474,187.2,187.15,5.3427]
[1755727477200,0.04063474,187.2,187.16,5.3426]
[1755727477590,0.04063474,187.2,187.07,8.06098256]
[1755727477994,0.04063474,187.2,187.08,4.39415418]
[1755727478496,0.04063474,187.2,187.16,5.3424]
[1755727479697,0.04063474,187.2,187.09,4.39415418]
[1755727480193,0.04063474,187.2,187.19,5.3417]
[1755727482403,358.86,187.31,187.19,5.3417]
[1755727482404,358.86,187.31,187.24,5.3403]
[1755727482600,358.86,187.31,187.18,0.04093593]
[1755727482993,358.86,187.31,187.17,3.66682838]
[1755727483803,358.86,187.31,187.22,0.03657953]
[1755727484995,358.86,187.31,187.24,5.3402]
[1755727486004,358.86,187.31,187.22,5.37727953]
[1755727486198,358.86,187.31,187.22,0.03657953]
[1755727487701,3.66682838,187.28,187.22,0.03657953]
[1755727487903,134.26,187.27,187.22,0.03657953]
[1755727488902,358.86,187.31,187.22,0.03657953]
[1755727489204,134.22,187.3,187.22,0.03657953]
[1755727495006,3.66682838,187.28,187.22,0.03657953]
[1755727496503,134.02,187.27,187.22,0.03657953]
[1755727497699,358.86,187.31,187.22,0.03657953]
[1755727498008,133.98,187.3,187.22,0.03657953]
[1755727502102,133.98,187.3,187.22,5.37727953]
[1755727502399,133.98,187.3,187.22,0.03657953]
[1755727503106,133.98,187.3,187.26,5.3395]
[1755727503306,364.89830569,187.41,187.22,0.03657953]
[1755727503602,134.54,187.4,187.21,3.66682838]
[1755727503809,235.21507895,187.4,187.25,3.66682838]
[1755727504008,235.21507895,187.4,187.3,0.04070586]
[1755727504209,134.54,187.4,187.31,5.3382]
[1755727504513,134.54,187.4,187.3,0.04070586]
[1755727505814,3.66682838,187.37,187.3,0.04070586]
[1755727506011,134.46,187.36,187.3,0.04070586]
[1755727508508,0.92923899,187.4,187.3,0.04070586]
[1755727508509,134.4,187.35,187.3,0.04070586]
[1755727518325,3.66682838,187.33,187.3,0.04070586]
[1755727518626,3.66682838,187.33,187.19,5.3417]
[1755727518824,9.58513407,187.33,187.16,4.39415418]
[1755727519021,3.66682838,187.33,187.18,8.06098256]
[1755727519227,134.06,187.32,187.24,5.3402]
[1755727519425,3.66682838,187.37,187.2,4.39415418]
[1755727519426,134.06,187.31,187.2,4.39415418]
[1755727519621,134.06,187.31,187.25,5.3398]
[1755727519927,0.04102535,187.3,187.25,5.3398]
[1755727521721,0.04102535,187.3,187.24,5.3402]
[1755727521936,0.04102535,187.3,187.19,4.39415418]
[1755727522130,0.04102535,187.3,187.2,4.39415418]
[1755727522325,134.04,187.33,187.2,4.39415418]
[1755727522830,0.03588998,187.27,187.2,4.39415418]
[1755727523829,0.03588998,187.27,187.24,5.3401]
[1755727524025,0.03588998,187.27,187.2,4.39415418]
[1755727524626,0.03588998,187.27,187.22,5.3407]
[1755727526330,0.03588998,187.27,187.2,5.3414]
[1755727526728,0.03588998,187.27,187.17,9.73645418]
[1755727527130,0.03588998,187.27,187.17,5.3423]
[1755727527524,0.03588998,187.27,187.16,4.39415418]
[1755727527732,0.03588998,187.27,187.18,5.3419]
[1755727527921,0.03588998,187.27,187.16,4.39415418]
[1755727528326,0.03588998,187.27,187.17,5.3422]
[1755727529327,0.03588998,187.27,187.15,4.44250006]
[1755727529536,0.03588998,187.27,187.14,4.44250006]
[1755727529734,3.66682838,187.29,187.14,4.44250006]
[1755727529934,3.66682838,187.29,187.13,4.44250006]
[1755727530135,0.03656438,187.22,187.16,5.3425]
[1755727530530,0.03656438,187.22,187.15,4.44250006]
[1755727531531,0.03656438,187.22,187.16,4.44250006]
[1755727531737,0.03656438,187.22,187.21,5.3412]
[1755727533539,0.03656438,187.22,187.16,4.44250006]
[1755727534139,0.03656438,187.22,187.15,4.44250006]
[1755727534339,0.03656438,187.22,187.16,4.44250006]
[1755727534538,0.03656438,187.22,187.18,5.3419]
[1755727535445,0.03656438,187.22,187.17,5.3422]
[1755727535643,0.03656438,187.22,187.15,4.44250006]
[1755727536548,0.03656438,187.22,187.17,5.3423]
[1755727536748,0.03656438,187.22,187.15,4.44250006]
[1755727537745,0.03656438,187.22,187.18,5.3418]
[1755727538751,0.03656438,187.22,187.17,5.3422]
[1755727539047,0.03656438,187.22,187.13,4.44250006]
[1755727539441,0.03656438,187.22,187.14,5.3431]
[1755727539948,0.03656438,187.22,187.13,5.3434]
[1755727540648,0.03656438,187.22,187.12,5.3437]
[1755727541844,0.03656438,187.22,187.11,161.25229889]
[1755727542052,0.03656438,187.22,187.11,156.80979883]
[1755727542243,0.03656438,187.22,187.11,151.46579883]
[1755727542646,0.03656438,187.22,187.12,8.10932844]
[1755727542846,0.03656438,187.22,187.11,151.46579883]
[1755727543047,0.03656438,187.22,187.11,156.80959883]
[1755727543249,0.03656438,187.22,187.11,151.46579883]
[1755727543747,3.70339276,187.22,187.08,4.44250006]
[1755727544053,3.70339276,187.22,187.07,4.44250006]